fUST/lending_fUST_20250707
["ID","MTS","AMOUNT","RATE_DAILY","PERIOD"]
[370076392,1751874722678,-667.38,0.00020916,2]
[370076393,1751874722688,-460.0,0.00020916,2]
[370076394,1751874722698,-462.72,0.00020916,2]
[370076395,1751874722708,-460.0,0.00020916,2]
[370076396,1751874722718,-476.25,0.00020917,2]
[370076397,1751874722728,-460.0,0.00020917,2]
[370076398,1751874722737,-460.0,0.00020917,2]
[370076399,1751874722747,-460.0,0.00020917,2]
[370076400,1751874722756,-514.3,0.00020917,2]
[370076401,1751874722767,-460.0,0.00020917,2]
[370076402,1751874722777,-487.81,0.00020917,2]
[370076403,1751874722788,-1189.7,0.00020917,2]
[370076404,1751874722798,-460.0,0.00020917,2]
[370076405,1751874722807,-1405.47,0.00020917,2]
[370076406,1751874722817,-470.64,0.00020917,2]
[370076407,1751874722827,-460.0,0.00020917,2]
[370076408,1751874722836,-1319.88,0.00020917,2]
[370076409,1751874722846,-760.73,0.00020917,2]
[370076410,1751874722855,-1793.32,0.00020917,2]
[370076411,1751874722865,-460.0,0.00020917,2]
[370076412,1751874722875,-460.0,0.00020917,2]
[370076413,1751874722884,-460.0,0.00020917,2]
[370076414,1751874722893,-801.02,0.00020917,2]
[370076415,1751874722906,-484.77,0.00020917,2]
[370076416,1751874722916,-460.0,0.00020917,2]
[370076417,1751874722925,-485.52,0.00020917,2]
[370076418,1751874722935,-9292.4,0.00020917,2]
[370076419,1751874722944,-752.99,0.00020917,2]
[370076420,1751874722954,-2399.68,0.00020917,2]
[370076421,1751874722963,-460.0,0.00020917,2]
[370076422,1751874722973,-1940.76,0.00020917,2]
[370076423,1751874722983,-460.0,0.00020917,2]
[370076424,1751874722992,-1002.05,0.00020917,2]
[370076425,1751874723002,-1775.53,0.00020917,2]
[370076426,1751874723011,-833.33,0.00020918,2]
[370076427,1751874723021,-460.0,0.00020918,2]
[370076428,1751874723030,-479.16,0.00020918,2]
[370076429,1751874723039,-460.0,0.00020918,2]
[370076430,1751874723049,-460.0,0.00020918,2]
[370076431,1751874723059,-526.13,0.00020918,2]
[370076432,1751874723068,-789.93,0.00020918,2]
[370076433,1751874723078,-460.0,0.00020918,2]
[370076434,1751874723088,-460.0,0.00020918,2]
[370076435,1751874723098,-460.0,0.00020918,2]
[370076436,1751874723107,-460.0,0.00020918,2]
[370076437,1751874723117,-460.0,0.00020918,2]
[370076438,1751874723127,-460.0,0.00020918,2]
[370076439,1751874723136,-460.0,0.00020918,2]
[370076440,1751874723146,-1358.8,0.00020918,2]
[370076441,1751874723155,-460.0,0.00020918,2]
[370076442,1751874723166,-377.30445438,0.00020918,2]
[370076443,1751874723175,-460.0,0.00020918,2]
[370076444,1751874723185,-474.49,0.00020918,2]
[370076445,1751874723195,-1067.63,0.00020918,2]
[370076446,1751874723205,-484.4,0.00020918,2]
[370076447,1751874723219,-636.05,0.00020918,2]
[370076448,1751874723230,-460.0,0.00020918,2]
[370076449,1751874723239,-460.0,0.00020918,2]
[370076450,1751874723248,-460.0,0.00020918,2]
[370076451,1751874723259,-460.0,0.00020918,2]
[370076452,1751874723268,-460.0,0.00020918,2]
[370076453,1751874723277,-460.0,0.00020918,2]
[370076454,1751874723287,-460.0,0.00020918,2]
[370076455,1751874723297,-460.0,0.00020918,2]
[370076456,1751874723308,-460.0,0.00020918,2]
[370076457,1751874723318,-460.0,0.00020918,2]
[370076458,1751874723332,-460.0,0.00020918,2]
[370076459,1751874723342,-467.22786218,0.00020918,2]
[370076460,1751874723351,-1217.52,0.00020918,2]
[370076461,1751874723361,-460.0,0.00020918,2]
[370076462,1751874723370,-598.99,0.00020918,2]
[370076463,1751874723380,-460.0,0.00020918,2]
[370076464,1751874723394,-460.0,0.00020918,2]
[370076465,1751874723404,-460.0,0.00020918,2]
[370076466,1751874723413,-460.0,0.00020918,2]
[370076467,1751874723422,-257.32009654,0.00020918,2]
[370076468,1751874723433,-460.44,0.00020918,2]
[370076469,1751874723443,-460.0,0.00020918,2]
[370076470,1751874723454,-460.0,0.00020918,2]
[370076471,1751874723464,-460.0,0.00020918,2]
[370076472,1751874723474,-460.0,0.00020918,2]
[370076473,1751874723484,-460.0,0.00020918,2]
[370076474,1751874723494,-460.0,0.00020918,2]
[370076475,1751874723504,-568.83,0.00020918,2]
[370076476,1751874723514,-460.0,0.00020918,2]
[370076477,1751874723524,-460.0,0.00020918,2]
[370076478,1751874723534,-460.0,0.00020918,2]
[370076479,1751874723544,-1142.62,0.00020918,2]
[370076480,1751874723554,-3875.46,0.00020918,2]
[370076481,1751874723564,-460.0,0.00020918,2]
[370076482,1751874723573,-484.93,0.00020918,2]
[370076483,1751874723583,-463.84,0.00020918,2]
[370076484,1751874723592,-460.0,0.00020918,2]
[370076485,1751874723602,-661.69,0.00020918,2]
[370076486,1751874723612,-460.0,0.00020918,2]
[370076487,1751874723622,-460.0,0.00020918,2]
[370076488,1751874723633,-460.0,0.00020918,2]
[370076489,1751874723643,-460.0,0.00020918,2]
[370076490,1751874723653,-3246.94,0.00020918,2]
[370076491,1751874723663,-503.41,0.00020918,2]
[370076492,1751874723673,-499.04,0.00020918,2]
[370076493,1751874723683,-460.0,0.00020918,2]
[370076494,1751874723694,-460.0,0.00020918,2]
[370076495,1751874723704,-2096.65,0.00020918,2]
[370076496,1751874723715,-460.0,0.00020918,2]
[370076497,1751874723726,-503.05,0.00020918,2]
[370076498,1751874723736,-460.0,0.00020918,2]
[370076499,1751874723746,-245.61496019,0.0002092,2]
[370076500,1751874723756,-460.0,0.0002092,2]
[370076501,1751874723766,-460.0,0.0002092,2]
[370076502,1751874723777,-1143.07,0.0002092,2]
[370076503,1751874723786,-460.0,0.0002092,2]
[370076504,1751874723796,-460.0,0.0002092,2]
[370076505,1751874723806,-460.0,0.0002092,2]
[370076506,1751874723816,-460.0,0.0002092,2]
[370076507,1751874723826,-460.0,0.0002092,2]
[370076508,1751874723836,-460.0,0.0002092,2]
[370076509,1751874723846,-460.0,0.0002092,2]
[370076510,1751874723856,-460.0,0.0002092,2]
[370076511,1751874723865,-904.25,0.0002092,2]
[370076512,1751874723875,-460.0,0.0002092,2]
[370076513,1751874724114,-494.18,0.0002092,2]
[370076514,1751874724124,-460.0,0.0002092,2]
[370076515,1751874724134,-460.0,0.0002092,2]
[370076516,1751874724144,-460.0,0.0002092,2]
[370076517,1751874724153,-589.6839843,0.0002092,2]
[370076518,1751874724163,-460.0,0.00020921,2]
[370076519,1751874724173,-460.0,0.00020921,2]
[370076520,1751874724182,-460.0,0.00020921,2]
[370076521,1751874724191,-471.71,0.00020921,2]
[370076522,1751874724201,-460.0,0.00020921,2]
[370076523,1751874724210,-460.0,0.00020921,2]
[370076524,1751874724223,-460.0,0.00020921,2]
[370076525,1751874724232,-151.0,0.00020922,2]
[370076526,1751874724241,-151.0,0.00020922,2]
[370076527,1751874724251,-151.0,0.00020922,2]
[370076528,1751874724260,-151.906609,0.00020923,2]
[370076529,1751874724269,-1952.44731812,0.00020934,4]
[370076530,1751874724279,-165.456041,0.00020951,2]
[370076531,1751874724289,-3000.0,0.00021,2]
[370076532,1751874724298,-4019.73249195,0.00021,2]
[370076533,1751874724308,-269.5672343,0.00021,2]
[370076534,1751874724317,-677.60956811,0.00021,10]
[370076535,1751874724327,-12363.83127234,0.00021,2]
[370076536,1751874724336,-3000.0,0.0002101,2]
[370076537,1751874724346,-3000.0,0.0002102,2]
[370076538,1751874724355,-3000.0,0.0002103,2]
[370076539,1751874724365,-3000.0,0.0002104,2]
[370076540,1751874724375,-3000.0,0.0002105,2]
[370076541,1751874724384,-3000.0,0.0002106,2]
[370076542,1751874724393,-3000.0,0.0002107,2]
[370076543,1751874724403,-3000.0,0.0002108,2]
[370076544,1751874724411,-500.0,0.00021084,2]
[370076545,1751874724421,-3000.0,0.0002109,2]
[370076546,1751874724431,-3000.0,0.000211,2]
[370076547,1751874724440,-3000.0,0.0002111,2]
[370076548,1751874724450,-3000.0,0.0002112,2]
[370076549,1751874724459,-3000.0,0.0002113,2]
[370076550,1751874724468,-3000.0,0.0002114,2]
[370076551,1751874724478,-3000.0,0.0002115,2]
[370076552,1751874724487,-3000.0,0.0002116,2]
[370076553,1751874724497,-151.0,0.0002116,2]
[370076554,1751874724507,-151.0,0.0002116,2]
[370076555,1751874724516,-151.0,0.0002116,2]
[370076556,1751874724526,-3000.0,0.0002117,2]
[370076557,1751874724535,-3000.0,0.0002118,2]
[370076558,1751874724545,-460.0,0.00021187,2]
[370076559,1751874724555,-460.0,0.00021187,2]
[370076560,1751874724565,-516.51,0.00021187,2]
[370076561,1751874724574,-502.13,0.00021187,2]
[370076562,1751874724584,-460.0,0.00021187,2]
[370076563,1751874724595,-5847.9,0.00021187,2]
[370076564,1751874724605,-570.13,0.00021187,2]
[370076565,1751874724614,-462.21,0.00021188,2]
[370076566,1751874724624,-460.0,0.00021188,2]
[370076567,1751874724634,-3915.6,0.00021188,2]
[370076568,1751874724644,-598.2,0.00021188,2]
[370076569,1751874724654,-2220.21,0.00021188,2]
[370076570,1751874724663,-596.4,0.00021188,2]
[370076571,1751874724673,-791.73,0.00021188,2]
[370076572,1751874724684,-460.0,0.00021188,2]
[370076573,1751874724694,-460.0,0.00021188,2]
[370076574,1751874724703,-500.96,0.00021188,2]
[370076575,1751874724713,-460.0,0.00021188,2]
[370076576,1751874724723,-908.31,0.00021188,2]
[370076577,1751874724733,-3498.14,0.00021188,2]
[370076578,1751874724743,-477.70248986,0.00021188,2]
[370076579,1751874724753,-7001.38,0.00021188,2]
[370076580,1751874724763,-271.3,0.00021188,2]
[370076581,1751874724773,-802.05,0.00021188,2]
[370076582,1751874724782,-460.0,0.00021188,2]
[370076583,1751874724792,-2963.68,0.00021188,2]
[370076584,1751874724802,-960.04,0.00021188,2]
[370076585,1751874724811,-515.59,0.00021188,2]
[370076586,1751874724821,-1138.73,0.00021188,2]
[370076587,1751874724831,-460.0,0.00021189,2]
[370076588,1751874724842,-460.0,0.00021189,2]
[370076589,1751874724853,-460.0,0.00021189,2]
[370076590,1751874724864,-460.0,0.00021189,2]
[370076591,1751874724875,-460.0,0.00021189,2]
[370076592,1751874724886,-460.0,0.00021189,2]
[370076593,1751874724896,-460.0,0.00021189,2]
[370076594,1751874724905,-460.0,0.00021189,2]
[370076595,1751874724915,-460.0,0.00021189,2]
[370076596,1751874724925,-460.0,0.00021189,2]
[370076597,1751874724934,-460.0,0.00021189,2]
[370076598,1751874724944,-460.0,0.00021189,2]
[370076599,1751874724953,-460.0,0.00021189,2]
[370076600,1751874724963,-460.0,0.00021189,2]
[370076601,1751874724974,-460.0,0.00021189,2]
[370076602,1751874724984,-460.0,0.00021189,2]
[370076603,1751874724994,-460.0,0.00021189,2]
[370076604,1751874725003,-460.0,0.00021189,2]
[370076605,1751874725013,-460.0,0.00021189,2]
[370076606,1751874725023,-800.94,0.00021189,2]
[370076607,1751874725033,-1010.27,0.00021189,2]
[370076608,1751874725042,-3000.0,0.0002119,2]
[370076609,1751874725052,-460.0,0.0002119,2]
[370076610,1751874725062,-585.88,0.0002119,2]
[370076611,1751874725072,-545.09,0.0002119,2]
[370076612,1751874725081,-460.0,0.0002119,2]
[370076613,1751874725091,-460.0,0.0002119,2]
[370076614,1751874725100,-460.0,0.0002119,2]
[370076615,1751874725110,-460.0,0.0002119,2]
[370076616,1751874725120,-460.0,0.0002119,2]
[370076617,1751874725129,-595.03,0.0002119,2]
[370076618,1751874725138,-460.0,0.0002119,2]
[370076619,1751874725148,-460.0,0.0002119,2]
[370076620,1751874725158,-460.0,0.0002119,2]
[370076621,1751874725169,-460.0,0.0002119,2]
[370076622,1751874725179,-853.89,0.0002119,2]
[370076623,1751874725191,-460.0,0.0002119,2]
[370076624,1751874725201,-653.05,0.0002119,2]
[370076625,1751874725211,-1467.27,0.0002119,2]
[370076626,1751874725225,-460.0,0.0002119,2]
[370076627,1751874725237,-588.3,0.0002119,2]
[370076628,1751874725247,-460.0,0.0002119,2]
[370076629,1751874725258,-533.76,0.0002119,2]
[370076630,1751874725267,-558.67,0.0002119,2]
[370076631,1751874725277,-460.0,0.0002119,2]
[370076632,1751874725287,-1277.64,0.0002119,2]
[370076633,1751874725298,-875.52,0.0002119,2]
[370076634,1751874725308,-1859.47,0.0002119,2]
[370076635,1751874725320,-460.0,0.0002119,2]
[370076636,1751874725331,-460.0,0.0002119,2]
[370076637,1751874725341,-667.38,0.0002119,2]
[370076638,1751874725350,-589.98,0.0002119,2]
[370076639,1751874725360,-462.72,0.0002119,2]
[370076640,1751874725370,-460.0,0.0002119,2]
[370076641,1751874725380,-476.25,0.00021191,2]
[370076642,1751874725389,-460.0,0.00021191,2]
[370076643,1751874725398,-460.0,0.00021191,2]
[370076644,1751874725408,-460.0,0.00021191,2]
[370076645,1751874725417,-536.66,0.00021191,2]
[370076646,1751874725427,-241.98647851,0.00021191,2]
[370076647,1751874725436,-487.81,0.00021191,2]
[370076648,1751874725446,-1189.7,0.00021191,2]
[370076649,1751874725455,-460.0,0.00021191,2]
[370076650,1751874725464,-1405.47,0.00021191,2]
[370076651,1751874725475,-470.64,0.00021191,2]
[370076652,1751874725485,-1319.88,0.00021191,2]
[370076653,1751874725495,-760.73,0.00021191,2]
[370076654,1751874725504,-1793.32,0.00021191,2]
[370076655,1751874725513,-460.0,0.00021191,2]
[370076656,1751874725523,-460.0,0.00021191,2]
[370076657,1751874725532,-460.0,0.00021191,2]
[370076658,1751874725542,-801.02,0.00021191,2]
[370076659,1751874725551,-484.77,0.00021191,2]
[370076660,1751874725561,-460.0,0.00021191,2]
[370076661,1751874725570,-485.52,0.00021191,2]
[370076662,1751874725580,-9292.4,0.00021191,2]
[370076663,1751874725589,-752.99,0.00021191,2]
[370076664,1751874725599,-2399.68,0.00021191,2]
[370076665,1751874725608,-460.0,0.00021191,2]
[370076666,1751874725617,-1940.76,0.00021191,2]
[370076667,1751874725626,-460.0,0.00021191,2]
[370076668,1751874725636,-1002.05,0.00021191,2]
[370076669,1751874725645,-1775.53,0.00021191,2]
[370076670,1751874725654,-833.33,0.00021192,2]
[370076671,1751874725664,-460.0,0.00021192,2]
[370076672,1751874725674,-479.16,0.00021192,2]
[370076673,1751874725684,-271.59285733,0.00021192,2]
[370076674,1751874725693,-460.0,0.00021192,2]
[370076675,1751874725702,-789.93,0.00021192,2]
[370076676,1751874725712,-460.0,0.00021192,2]
[370076677,1751874725721,-182.786146,0.00021192,2]
[370076678,1751874725731,-460.0,0.00021192,2]
[370076679,1751874725740,-460.0,0.00021192,2]
[370076680,1751874725749,-460.0,0.00021192,2]
[370076681,1751874725760,-460.0,0.00021192,2]
[370076682,1751874725769,-1358.8,0.00021192,2]
[370076683,1751874725779,-460.0,0.00021192,2]
[370076684,1751874725788,-460.0,0.00021192,2]
[370076685,1751874725798,-474.49,0.00021192,2]
[370076686,1751874725807,-1067.63,0.00021192,2]
[370076687,1751874725817,-484.4,0.00021192,2]
[370076688,1751874725827,-636.05,0.00021192,2]
[370076689,1751874725836,-214.49900344,0.00021192,2]
[370076690,1751874725846,-460.0,0.00021192,2]
[370076691,1751874725856,-460.0,0.00021192,2]
[370076692,1751874725866,-460.0,0.00021192,2]
[370076693,1751874725875,-460.0,0.00021192,2]
[370076694,1751874725884,-460.0,0.00021192,2]
[370076695,1751874725893,-460.0,0.00021192,2]
[370076696,1751874725902,-460.0,0.00021192,2]
[370076697,1751874725912,-460.0,0.00021192,2]
[370076698,1751874725921,-460.0,0.00021192,2]
[370076699,1751874725930,-1217.52,0.00021192,2]
[370076700,1751874725940,-460.0,0.00021192,2]
[370076701,1751874725949,-598.99,0.00021192,2]
[370076702,1751874725958,-460.0,0.00021192,2]
[370076703,1751874725968,-460.0,0.00021192,2]
[370076704,1751874725977,-460.0,0.00021192,2]
[370076705,1751874725986,-460.0,0.00021192,2]
[370076706,1751874725996,-460.44,0.00021192,2]
[370076707,1751874726005,-460.0,0.00021192,2]
[370076708,1751874726014,-460.0,0.00021192,2]
[370076709,1751874726024,-460.0,0.00021192,2]
[370076710,1751874726033,-460.0,0.00021192,2]
[370076711,1751874726042,-460.0,0.00021192,2]
[370076712,1751874726052,-460.0,0.00021192,2]
[370076713,1751874726061,-568.83,0.00021192,2]
[370076714,1751874726071,-460.0,0.00021192,2]
[370076715,1751874726080,-460.0,0.00021192,2]
[370076716,1751874726089,-460.0,0.00021192,2]
[370076717,1751874726099,-1142.62,0.00021192,2]
[370076718,1751874726109,-3875.46,0.00021192,2]
[370076719,1751874726118,-460.0,0.00021192,2]
[370076720,1751874726128,-484.93,0.00021192,2]
[370076721,1751874726137,-460.0,0.00021192,2]
[370076722,1751874726146,-661.69,0.00021192,2]
[370076723,1751874726155,-460.0,0.00021192,2]
[370076724,1751874726164,-460.0,0.00021192,2]
[370076725,1751874726173,-460.0,0.00021192,2]
[370076726,1751874726183,-460.0,0.00021192,2]
[370076727,1751874726192,-3246.94,0.00021192,2]
[370076728,1751874726202,-503.41,0.00021192,2]
[370076729,1751874726212,-499.04,0.00021192,2]
[370076730,1751874726224,-460.0,0.00021192,2]
[370076731,1751874726234,-460.0,0.00021192,2]
[370076732,1751874726243,-2096.65,0.00021192,2]
[370076733,1751874726252,-460.0,0.00021192,2]
[370076734,1751874726262,-503.05,0.00021192,2]
[370076735,1751874726271,-460.0,0.00021192,2]
[370076736,1751874726280,-460.0,0.00021194,2]
[370076737,1751874726289,-460.0,0.00021194,2]
[370076738,1751874726299,-1143.07,0.00021194,2]
[370076739,1751874726308,-460.0,0.00021194,2]
[370076740,1751874726317,-460.0,0.00021194,2]
[370076741,1751874726326,-460.0,0.00021194,2]
[370076742,1751874726336,-460.0,0.00021194,2]
[370076743,1751874726345,-460.0,0.00021194,2]
[370076744,1751874726355,-460.0,0.00021194,2]
[370076745,1751874726364,-460.0,0.00021194,2]
[370076746,1751874726373,-460.0,0.00021194,2]
[370076747,1751874726383,-904.25,0.00021194,2]
[370076748,1751874726392,-460.0,0.00021194,2]
[370076749,1751874726402,-460.0,0.00021194,2]
[370076750,1751874726411,-460.0,0.00021194,2]
[370076751,1751874726420,-460.0,0.00021194,2]
[370076752,1751874726430,-460.0,0.00021195,2]
[370076753,1751874726439,-460.0,0.00021195,2]
[370076754,1751874726449,-460.0,0.00021195,2]
[370076755,1751874726457,-471.71,0.00021195,2]
[370076756,1751874726467,-460.0,0.00021195,2]
[370076757,1751874726476,-460.0,0.00021195,2]
[370076758,1751874726485,-460.0,0.00021195,2]
[370076759,1751874726494,-151.0,0.00021196,2]
[370076760,1751874726503,-151.0,0.00021196,2]
[370076761,1751874726513,-151.0,0.00021196,2]
[370076762,1751874726522,-3000.0,0.000212,2]
[370076763,1751874726531,-3000.0,0.0002121,2]
[370076764,1751874726540,-1952.44731812,0.0002121,4]
[370076765,1751874726549,-3000.0,0.0002122,2]
[370076766,1751874726558,-3000.0,0.0002123,2]
[370076767,1751874726568,-3000.0,0.0002124,2]
[370076768,1751874726578,-3000.0,0.0002125,2]
[370076769,1751874726588,-244.38574,0.0002125,2]
[370076770,1751874726598,-244.38574,0.0002125,2]
[370076771,1751874726607,-3000.0,0.0002126,2]
[370076772,1751874726616,-3000.0,0.0002127,2]
[370076773,1751874726626,-3000.0,0.0002128,2]
[370076774,1751874726635,-3000.0,0.0002129,2]
[370076775,1751874726644,-3000.0,0.000213,2]
[370076776,1751874726654,-3000.0,0.0002131,2]
[370076777,1751874726663,-3000.0,0.0002132,2]
[370076778,1751874726674,-196.555937,0.0002132,2]
[370076779,1751874726683,-196.555937,0.0002132,2]
[370076780,1751874726692,-3000.0,0.0002133,2]
[370076781,1751874726702,-3000.0,0.0002134,2]
[370076782,1751874726711,-3000.0,0.0002135,2]
[370076783,1751874726720,-3000.0,0.0002136,2]
[370076784,1751874726729,-3000.0,0.0002137,2]
[370076785,1751874726738,-3000.0,0.0002138,2]
[370076786,1751874726747,-3000.0,0.0002139,2]
[370076787,1751874726757,-3000.0,0.000214,2]
[370076788,1751874726766,-3000.0,0.0002141,2]
[370076789,1751874726776,-3000.0,0.0002142,2]
[370076790,1751874726785,-5893.508053,0.0002143,2]
[370076791,1751874726795,-549.33,0.00021461,2]
[370076792,1751874726804,-355.15,0.00021461,2]
[370076793,1751874726814,-516.51,0.00021461,2]
[370076794,1751874726823,-502.13,0.00021461,2]
[370076795,1751874726833,-460.0,0.00021461,2]
[370076796,1751874726843,-5847.9,0.00021461,2]
[370076797,1751874726852,-462.21,0.00021462,2]
[370076798,1751874726862,-460.0,0.00021462,2]
[370076799,1751874726871,-3915.6,0.00021462,2]
[370076800,1751874726880,-598.2,0.00021462,2]
[370076801,1751874726890,-2220.21,0.00021462,2]
[370076802,1751874726899,-596.4,0.00021462,2]
[370076803,1751874726908,-791.73,0.00021462,2]
[370076804,1751874726918,-460.0,0.00021462,2]
[370076805,1751874726928,-500.96,0.00021462,2]
[370076806,1751874726937,-460.0,0.00021462,2]
[370076807,1751874726947,-908.31,0.00021462,2]
[370076808,1751874726956,-3498.14,0.00021462,2]
[370076809,1751874726965,-7001.38,0.00021462,2]
[370076810,1751874726975,-802.05,0.00021462,2]
[370076811,1751874726985,-460.0,0.00021462,2]
[370076812,1751874726994,-2963.68,0.00021462,2]
[370076813,1751874727004,-960.04,0.00021462,2]
[370076814,1751874727013,-515.59,0.00021462,2]
[370076815,1751874727023,-1138.73,0.00021462,2]
[370076816,1751874727032,-460.0,0.00021463,2]
[370076817,1751874727042,-460.0,0.00021463,2]
[370076818,1751874727052,-460.0,0.00021463,2]
[370076819,1751874727061,-460.0,0.00021463,2]
[370076820,1751874727071,-530.26,0.00021463,2]
[370076821,1751874727084,-460.0,0.00021463,2]
[370076822,1751874727093,-460.0,0.00021463,2]
[370076823,1751874727103,-460.0,0.00021463,2]
[370076824,1751874727112,-460.0,0.00021463,2]
[370076825,1751874727304,-475.63,0.00021463,2]
[370076826,1751874727315,-531.86,0.00021463,2]
[370076827,1751874727326,-260.96,0.00021463,2]
[370076828,1751874727335,-460.0,0.00021463,2]
[370076829,1751874727344,-460.0,0.00021463,2]
[370076830,1751874727354,-460.0,0.00021463,2]
[370076831,1751874727364,-460.0,0.00021463,2]
[370076832,1751874727374,-460.0,0.00021463,2]
[370076833,1751874727385,-460.0,0.00021463,2]
[370076834,1751874727395,-460.0,0.00021463,2]
[370076835,1751874727405,-800.94,0.00021463,2]
[370076836,1751874727415,-1010.27,0.00021463,2]
[370076837,1751874727425,-460.0,0.00021464,2]
[370076838,1751874727436,-545.09,0.00021464,2]
[370076839,1751874727447,-460.0,0.00021464,2]
[370076840,1751874727457,-460.0,0.00021464,2]
[370076841,1751874727468,-170.91,0.00021464,2]
[370076842,1751874727479,-427.82158905,0.00021464,2]
[370076843,1751874727491,-595.03,0.00021464,2]
[370076844,1751874727500,-460.0,0.00021464,2]
[370076845,1751874727510,-460.0,0.00021464,2]
[370076846,1751874727520,-460.0,0.00021464,2]
[370076847,1751874727529,-460.0,0.00021464,2]
[370076848,1751874727539,-853.89,0.00021464,2]
[370076849,1751874727548,-460.0,0.00021464,2]
[370076850,1751874727558,-653.05,0.00021464,2]
[370076851,1751874727568,-1467.27,0.00021464,2]
[370076852,1751874727578,-460.0,0.00021464,2]
[370076853,1751874727588,-460.0,0.00021464,2]
[370076854,1751874727598,-558.67,0.00021464,2]
[370076855,1751874727607,-460.0,0.00021464,2]
[370076856,1751874727618,-1277.64,0.00021464,2]
[370076857,1751874727628,-875.52,0.00021464,2]
[370076858,1751874727638,-1859.47,0.00021464,2]
[370076859,1751874727648,-460.0,0.00021464,2]
[370076860,1751874727657,-460.0,0.00021464,2]
[370076861,1751874727667,-667.38,0.00021464,2]
[370076862,1751874727676,-462.72,0.00021464,2]
[370076863,1751874727686,-174.9,0.00021464,2]
[370076864,1751874727696,-476.25,0.00021465,2]
[370076865,1751874727705,-460.0,0.00021465,2]
[370076866,1751874727715,-387.47599282,0.00021465,2]
[370076867,1751874727724,-506.85426481,0.00021465,2]
[370076868,1751874727734,-536.66,0.00021465,2]
[370076869,1751874727744,-487.81,0.00021465,2]
[370076870,1751874727753,-1189.7,0.00021465,2]
[370076871,1751874727762,-460.0,0.00021465,2]
[370076872,1751874727772,-1405.47,0.00021465,2]
[370076873,1751874727782,-470.64,0.00021465,2]
[370076874,1751874727791,-1319.88,0.00021465,2]
[370076875,1751874727800,-760.73,0.00021465,2]
[370076876,1751874727810,-1793.32,0.00021465,2]
[370076877,1751874727820,-460.0,0.00021465,2]
[370076878,1751874727830,-460.0,0.00021465,2]
[370076879,1751874727840,-460.0,0.00021465,2]
[370076880,1751874727850,-801.02,0.00021465,2]
[370076881,1751874727859,-484.77,0.00021465,2]
[370076882,1751874727870,-460.0,0.00021465,2]
[370076883,1751874727879,-485.52,0.00021465,2]
[370076884,1751874727889,-9292.4,0.00021465,2]
[370076885,1751874727898,-752.99,0.00021465,2]
[370076886,1751874727910,-2399.68,0.00021465,2]
[370076887,1751874727920,-460.0,0.00021465,2]
[370076888,1751874727930,-1940.76,0.00021465,2]
[370076889,1751874727940,-460.0,0.00021465,2]
[370076890,1751874727949,-1002.05,0.00021465,2]
[370076891,1751874727958,-1775.53,0.00021465,2]